[Event "Titled Tuesday Blitz August 3 2021"]
[White "Gupta, Abhijeet"]
[Black "Harshavardhan G B"]
[WhiteFideId "5010608"]
[BlackFideId "25059009"]
[WhiteElo "2549"]
[BlackElo "1825"]
[Result "1-0"]
[Round "07"]
[TimeControl "180+1"]
[Date "2021.08.03"]
[WhiteClock "0:00:42"]
[BlackClock "0:00:13"]

1. Nf3 {[%clk 0:03:00]}  Nf6 {[%clk 0:02:59]} 2. c4 {[%clk 0:02:59]}  g6 {[%clk 0:02:59]} 3. Nc3 {[%clk 0:02:59]}  Bg7 {[%clk 0:02:59]} 4. e4 {[%clk 0:02:59]}  d6 {[%clk 0:02:58]} 5. d4 {[%clk 0:02:59]}  O-O {[%clk 0:02:58]} 6. h3 {[%clk 0:03:00]}  e5 {[%clk 0:02:57]} 7. d5 {[%clk 0:03:00]}  Na6 {[%clk 0:02:55]} 8. g4 {[%clk 0:02:58]}  Nd7 {[%clk 0:02:51]} 9. a3 {[%clk 0:02:56]}  f5 {[%clk 0:02:47]} 10. gxf5 {[%clk 0:02:56]}  gxf5 {[%clk 0:02:48]} 11. Rg1 {[%clk 0:02:54]}  Kh8 {[%clk 0:02:46]} 12. exf5 {[%clk 0:02:48]}  Ndc5 {[%clk 0:02:43]} 13. Rxg7 {[%clk 0:02:38]}  Kxg7 {[%clk 0:02:42]} 14. Bg5 {[%clk 0:02:38]}  Qe8 {[%clk 0:02:37]} 15. b4 {[%clk 0:02:37]}  Bxf5 {[%clk 0:02:26]} 16. bxc5 {[%clk 0:02:35]}  Nxc5 {[%clk 0:02:27]} 17. Nh4 {[%clk 0:02:19]}  Kh8 {[%clk 0:02:17]} 18. Be3 {[%clk 0:02:15]}  Ne4 {[%clk 0:02:01]} 19. Nxf5 {[%clk 0:02:03]}  Nxc3 {[%clk 0:01:59]} 20. Qc2 {[%clk 0:02:03]}  Qa4 {[%clk 0:01:41]} 21. Bd3 {[%clk 0:01:50]}  Qxc2 {[%clk 0:01:03]} 22. Bxc2 {[%clk 0:01:49]}  Na4 {[%clk 0:00:29]} 23. Nxd6 {[%clk 0:01:32]}  Nb6 {[%clk 0:00:23]} 24. Bxb6 {[%clk 0:01:23]}  cxd6 {[%clk 0:00:22]} 25. Be3 {[%clk 0:01:22]}  a6 {[%clk 0:00:21]} 26. Ke2 {[%clk 0:01:20]}  b5 {[%clk 0:00:21]} 27. cxb5 {[%clk 0:01:10]}  axb5 {[%clk 0:00:22]} 28. Bd2 {[%clk 0:01:10]}  Rfc8 {[%clk 0:00:18]} 29. Bd3 {[%clk 0:01:09]}  Rc5 {[%clk 0:00:18]} 30. Bb4 {[%clk 0:01:09]}  Rcc8 {[%clk 0:00:18]} 31. Bxd6 {[%clk 0:01:07]}  Kg8 {[%clk 0:00:15]} 32. Bb4 {[%clk 0:01:04]}  e4 {[%clk 0:00:14]} 33. Bxe4 {[%clk 0:01:04]}  Rc4 {[%clk 0:00:13]} 34. Bd3 {[%clk 0:00:57]}  Rd4 {[%clk 0:00:13]} 35. Rg1+ {[%clk 0:00:56]}  Kf7 {[%clk 0:00:13]} 36. Rg5 {[%clk 0:00:46]}  h6 {[%clk 0:00:12]} 37. Rf5+ {[%clk 0:00:45]}  Kg7 {[%clk 0:00:13]} 38. Bc3 {[%clk 0:00:42]} 1-0


[Site "https://www.chess.com"]

[Event "Titled Tuesday Blitz August 3 2021"]
[White "Hansen, Eric"]
[Black "Golubev, Mikhail"]
[WhiteFideId "2606771"]
[BlackFideId "14100983"]
[WhiteElo "2568"]
[BlackElo "2374"]
[Result "1-0"]
[Round "07"]
[TimeControl "180+1"]
[Date "2021.08.03"]
[WhiteClock "0:01:34"]
[BlackClock "0:00:55"]

1. Nf3 {[%clk 0:03:00]}  d6 {[%clk 0:02:59]} 2. g3 {[%clk 0:03:01]}  g6 {[%clk 0:02:59]} 3. Bg2 {[%clk 0:03:01]}  Bg7 {[%clk 0:03:00]} 4. d4 {[%clk 0:03:02]}  Nf6 {[%clk 0:02:59]} 5. Nc3 {[%clk 0:03:02]}  O-O {[%clk 0:02:58]} 6. O-O {[%clk 0:03:03]}  Nbd7 {[%clk 0:02:58]} 7. e4 {[%clk 0:03:03]}  e5 {[%clk 0:02:58]} 8. h3 {[%clk 0:03:04]}  Re8 {[%clk 0:02:57]} 9. Re1 {[%clk 0:03:04]}  b6 {[%clk 0:02:57]} 10. a4 {[%clk 0:03:00]}  a5 {[%clk 0:02:57]} 11. Be3 {[%clk 0:02:31]}  Bb7 {[%clk 0:02:57]} 12. d5 {[%clk 0:02:26]}  Nc5 {[%clk 0:02:57]} 13. Nd2 {[%clk 0:02:26]}  Nfd7 {[%clk 0:02:53]} 14. Nc4 {[%clk 0:02:22]}  f5 {[%clk 0:02:42]} 15. exf5 {[%clk 0:02:21]}  gxf5 {[%clk 0:02:43]} 16. f4 {[%clk 0:02:21]}  exf4 {[%clk 0:02:25]} 17. Bxf4 {[%clk 0:02:18]}  Ne5 {[%clk 0:02:25]} 18. Ne3 {[%clk 0:02:15]}  Ng6 {[%clk 0:02:22]} 19. Nxf5 {[%clk 0:02:08]}  Rxe1+ {[%clk 0:02:01]} 20. Qxe1 {[%clk 0:02:07]}  Nxf4 {[%clk 0:02:01]} 21. gxf4 {[%clk 0:02:06]}  Qf6 {[%clk 0:02:00]} 22. Nxg7 {[%clk 0:02:06]}  Kxg7 {[%clk 0:01:59]} 23. Qf2 {[%clk 0:01:57]}  Rf8 {[%clk 0:01:53]} 24. Rf1 {[%clk 0:01:52]}  Ba6 {[%clk 0:01:51]} 25. Qg3+ {[%clk 0:01:45]}  Kh8 {[%clk 0:01:49]} 26. Rf2 {[%clk 0:01:45]}  Qd4 {[%clk 0:01:40]} 27. Kh2 {[%clk 0:01:41]}  Nxa4 {[%clk 0:01:28]} 28. Nxa4 {[%clk 0:01:41]}  Qxa4 {[%clk 0:01:28]} 29. Qc3+ {[%clk 0:01:42]}  Kg8 {[%clk 0:01:26]} 30. Rf3 {[%clk 0:01:36]}  Qc4 {[%clk 0:00:55]} 31. Rg3+ {[%clk 0:01:34]} 1-0


[Site "https://www.chess.com"]

[Event "Titled Tuesday Blitz August 3 2021"]
[White "Hansen, Sune Berg"]
[Black "Andrews, Todd"]
[WhiteFideId "1400266"]
[BlackFideId "2012456"]
[WhiteElo "2658"]
[BlackElo "2441"]
[Result "1-0"]
[Round "07"]
[TimeControl "180+1"]
[Date "2021.08.03"]
[WhiteClock "0:00:26"]
[BlackClock "0:00:17"]

1. e4 {[%clk 0:02:57]}  e6 {[%clk 0:02:59]} 2. d4 {[%clk 0:02:56]}  d5 {[%clk 0:03:00]} 3. e5 {[%clk 0:02:57]}  c5 {[%clk 0:02:59]} 4. c3 {[%clk 0:02:58]}  Nc6 {[%clk 0:02:59]} 5. Nf3 {[%clk 0:02:58]}  Bd7 {[%clk 0:02:58]} 6. Be2 {[%clk 0:02:58]}  Nge7 {[%clk 0:02:57]} 7. Na3 {[%clk 0:02:57]}  cxd4 {[%clk 0:02:57]} 8. cxd4 {[%clk 0:02:57]}  Nf5 {[%clk 0:02:58]} 9. Nc2 {[%clk 0:02:57]}  Rc8 {[%clk 0:02:58]} 10. O-O {[%clk 0:02:56]}  Nb4 {[%clk 0:02:54]} 11. Nxb4 {[%clk 0:02:52]}  Bxb4 {[%clk 0:02:55]} 12. Bg5 {[%clk 0:02:46]}  Qb6 {[%clk 0:02:52]} 13. a3 {[%clk 0:02:34]}  Be7 {[%clk 0:02:49]} 14. Bxe7 {[%clk 0:02:33]}  Nxe7 {[%clk 0:02:49]} 15. Bd3 {[%clk 0:02:25]}  Bb5 {[%clk 0:02:45]} 16. Re1 {[%clk 0:02:12]}  Bxd3 {[%clk 0:02:44]} 17. Qxd3 {[%clk 0:02:12]}  h6 {[%clk 0:02:35]} 18. b4 {[%clk 0:02:05]}  O-O {[%clk 0:02:30]} 19. Rac1 {[%clk 0:01:56]}  Rc6 {[%clk 0:02:21]} 20. Rc5 {[%clk 0:01:48]}  Rfc8 {[%clk 0:02:18]} 21. g3 {[%clk 0:01:39]}  Qd8 {[%clk 0:02:05]} 22. Rec1 {[%clk 0:01:38]}  b6 {[%clk 0:02:04]} 23. Rxc6 {[%clk 0:01:38]}  Rxc6 {[%clk 0:02:04]} 24. Rxc6 {[%clk 0:01:38]}  Nxc6 {[%clk 0:02:05]} 25. Qc3 {[%clk 0:01:32]}  Ne7 {[%clk 0:01:57]} 26. b5 {[%clk 0:01:26]}  Qc8 {[%clk 0:01:53]} 27. Qxc8+ {[%clk 0:01:16]}  Nxc8 {[%clk 0:01:54]} 28. Ne1 {[%clk 0:01:09]}  Kf8 {[%clk 0:01:53]} 29. Nc2 {[%clk 0:01:01]}  Ke8 {[%clk 0:01:52]} 30. f4 {[%clk 0:01:00]}  Kd7 {[%clk 0:01:51]} 31. Kf2 {[%clk 0:01:00]}  Ne7 {[%clk 0:01:48]} 32. Ke3 {[%clk 0:00:58]}  h5 {[%clk 0:01:44]} 33. h3 {[%clk 0:00:52]}  Nf5+ {[%clk 0:01:10]} 34. Kf3 {[%clk 0:00:51]}  Kc7 {[%clk 0:01:08]} 35. g4 {[%clk 0:00:50]}  hxg4+ {[%clk 0:01:07]} 36. hxg4 {[%clk 0:00:50]}  Ne7 {[%clk 0:01:07]} 37. Nb4 {[%clk 0:00:45]}  Kb7 {[%clk 0:01:00]} 38. a4 {[%clk 0:00:41]}  g6 {[%clk 0:00:55]} 39. Kg3 {[%clk 0:00:40]}  Ng8 {[%clk 0:00:40]} 40. Kh4 {[%clk 0:00:39]}  Nh6 {[%clk 0:00:21]} 41. Kg5 {[%clk 0:00:36]}  Ng8 {[%clk 0:00:21]} 42. Nc6 {[%clk 0:00:33]}  a6 {[%clk 0:00:19]} 43. Nd8+ {[%clk 0:00:33]}  Kc7 {[%clk 0:00:20]} 44. Nxf7 {[%clk 0:00:33]}  axb5 {[%clk 0:00:21]} 45. axb5 {[%clk 0:00:32]}  Ne7 {[%clk 0:00:20]} 46. Kf6 {[%clk 0:00:30]}  Kd7 {[%clk 0:00:21]} 47. Nd6 {[%clk 0:00:27]}  Ng8+ {[%clk 0:00:18]} 48. Kxg6 {[%clk 0:00:27]}  Ne7+ {[%clk 0:00:19]} 49. Kg7 {[%clk 0:00:26]}  Kc7 {[%clk 0:00:16]} 50. f5 {[%clk 0:00:26]}  Kd7 {[%clk 0:00:17]} 51. f6 {[%clk 0:00:26]} 1-0


[Site "https://www.chess.com"]

[Event "Titled Tuesday Blitz August 3 2021"]
[White "Indjic, Aleksandar"]
[Black "Mohammad Nubairshah Shaikh"]
[WhiteFideId "911925"]
[BlackFideId "5053196"]
[WhiteElo "2643"]
[BlackElo "2382"]
[Result "1-0"]
[Round "07"]
[TimeControl "180+1"]
[Date "2021.08.03"]
[WhiteClock "0:00:43"]
[BlackClock "0:00:03"]

1. d4 {[%clk 0:03:00]}  g6 {[%clk 0:02:35]} 2. Nf3 {[%clk 0:02:56]}  Bg7 {[%clk 0:02:35]} 3. c4 {[%clk 0:02:56]}  c6 {[%clk 0:02:34]} 4. Nc3 {[%clk 0:02:54]}  d6 {[%clk 0:02:32]} 5. e4 {[%clk 0:02:49]}  Bg4 {[%clk 0:02:31]} 6. Be3 {[%clk 0:02:47]}  Nd7 {[%clk 0:02:29]} 7. Be2 {[%clk 0:02:42]}  e5 {[%clk 0:02:29]} 8. d5 {[%clk 0:02:42]}  cxd5 {[%clk 0:02:25]} 9. cxd5 {[%clk 0:02:43]}  Ngf6 {[%clk 0:02:23]} 10. O-O {[%clk 0:02:42]}  O-O {[%clk 0:02:23]} 11. a4 {[%clk 0:02:41]}  Ne8 {[%clk 0:02:22]} 12. h3 {[%clk 0:02:38]}  Bxf3 {[%clk 0:02:22]} 13. Bxf3 {[%clk 0:02:39]}  f5 {[%clk 0:02:23]} 14. a5 {[%clk 0:02:37]}  f4 {[%clk 0:02:21]} 15. Bd2 {[%clk 0:02:36]}  a6 {[%clk 0:02:18]} 16. b4 {[%clk 0:02:34]}  h5 {[%clk 0:02:17]} 17. Rc1 {[%clk 0:02:33]}  Kh7 {[%clk 0:02:14]} 18. Na4 {[%clk 0:02:29]}  Rg8 {[%clk 0:02:13]} 19. Nb2 {[%clk 0:02:27]}  Bf8 {[%clk 0:02:11]} 20. Qe2 {[%clk 0:02:26]}  Nef6 {[%clk 0:02:07]} 21. Rc2 {[%clk 0:02:24]}  Qe8 {[%clk 0:02:05]} 22. Rc7 {[%clk 0:02:22]}  Rg7 {[%clk 0:02:05]} 23. g4 {[%clk 0:02:06]}  hxg4 {[%clk 0:01:33]} 24. hxg4 {[%clk 0:02:04]}  Kg8 {[%clk 0:01:31]} 25. Rfc1 {[%clk 0:01:58]}  Rb8 {[%clk 0:01:26]} 26. Nc4 {[%clk 0:01:47]}  Nh7 {[%clk 0:01:22]} 27. Bg2 {[%clk 0:01:47]}  Ng5 {[%clk 0:01:17]} 28. f3 {[%clk 0:01:47]}  Rh7 {[%clk 0:01:14]} 29. Nb6 {[%clk 0:01:43]}  Nxb6 {[%clk 0:01:11]} 30. axb6 {[%clk 0:01:44]}  Nf7 {[%clk 0:01:04]} 31. Be1 {[%clk 0:01:41]}  Be7 {[%clk 0:01:04]} 32. Kf1 {[%clk 0:01:40]}  Bh4 {[%clk 0:01:02]} 33. Bxh4 {[%clk 0:01:39]}  Rxh4 {[%clk 0:01:03]} 34. Qc4 {[%clk 0:01:38]}  Kg7 {[%clk 0:00:59]} 35. Kf2 {[%clk 0:01:35]}  Rh8 {[%clk 0:00:54]} 36. Rc2 {[%clk 0:01:25]}  Qd8 {[%clk 0:00:54]} 37. Kf1 {[%clk 0:01:18]}  Qh4 {[%clk 0:00:39]} 38. Qe2 {[%clk 0:01:13]}  Qg3 {[%clk 0:00:31]} 39. Rd7 {[%clk 0:01:09]}  Rh7 {[%clk 0:00:29]} 40. Rcc7 {[%clk 0:01:07]}  Kf6 {[%clk 0:00:29]} 41. Qf2 {[%clk 0:01:07]}  Qh2 {[%clk 0:00:24]} 42. Rxb7 {[%clk 0:01:05]}  Rbh8 {[%clk 0:00:25]} 43. Rbc7 {[%clk 0:01:01]}  Qg3 {[%clk 0:00:09]} 44. Qxg3 {[%clk 0:00:58]}  fxg3 {[%clk 0:00:10]} 45. b7 {[%clk 0:00:58]}  Rb8 {[%clk 0:00:06]} 46. g5+ {[%clk 0:00:52]}  Nxg5 {[%clk 0:00:03]} 47. Rxh7 {[%clk 0:00:50]}  Nxh7 {[%clk 0:00:03]} 48. Rxh7 {[%clk 0:00:50]}  Kg5 {[%clk 0:00:04]} 49. Bh3 {[%clk 0:00:50]}  Kf4 {[%clk 0:00:05]} 50. Kg2 {[%clk 0:00:43]}  g5 {[%clk 0:00:04]} 51. Bc8 {[%clk 0:00:43]}  Ke3 {[%clk 0:00:03]} 1-0


[Site "https://www.chess.com"]

[Event "Titled Tuesday Blitz August 3 2021"]
[White "Ivanisevic, Ivan"]
[Black "Onyshchuk, Volodymyr"]
[WhiteFideId "912417"]
[BlackFideId "14114038"]
[WhiteElo "2499"]
[BlackElo "2603"]
[Result "1-0"]
[Round "07"]
[TimeControl "180+1"]
[Date "2021.08.03"]
[WhiteClock "0:00:11"]
[BlackClock "0:00:01"]

1. d4 {[%clk 0:03:00]}  d6 {[%clk 0:03:00]} 2. e4 {[%clk 0:02:59]}  Nf6 {[%clk 0:02:59]} 3. Nc3 {[%clk 0:02:58]}  g6 {[%clk 0:03:00]} 4. f4 {[%clk 0:02:57]}  Bg7 {[%clk 0:03:00]} 5. e5 {[%clk 0:02:57]}  dxe5 {[%clk 0:02:56]} 6. dxe5 {[%clk 0:02:58]}  Qxd1+ {[%clk 0:02:49]} 7. Kxd1 {[%clk 0:02:59]}  Ng4 {[%clk 0:02:43]} 8. Ke1 {[%clk 0:02:57]}  Nc6 {[%clk 0:02:42]} 9. Nd5 {[%clk 0:02:42]}  Kd8 {[%clk 0:02:39]} 10. Nf3 {[%clk 0:02:27]}  Be6 {[%clk 0:02:37]} 11. Ne3 {[%clk 0:02:27]}  f6 {[%clk 0:02:04]} 12. Bb5 {[%clk 0:02:11]}  Nxe3 {[%clk 0:01:57]} 13. Bxe3 {[%clk 0:02:11]}  fxe5 {[%clk 0:01:57]} 14. Bxc6 {[%clk 0:02:03]}  bxc6 {[%clk 0:01:57]} 15. Nxe5 {[%clk 0:02:02]}  Bd5 {[%clk 0:01:45]} 16. Kf2 {[%clk 0:01:53]}  Rf8 {[%clk 0:01:40]} 17. Kg3 {[%clk 0:01:50]}  Bxe5 {[%clk 0:01:27]} 18. fxe5 {[%clk 0:01:51]}  Kd7 {[%clk 0:01:27]} 19. Rad1 {[%clk 0:01:48]}  Ke6 {[%clk 0:01:26]} 20. b3 {[%clk 0:01:48]}  g5 {[%clk 0:01:13]} 21. Rhe1 {[%clk 0:01:36]}  c5 {[%clk 0:01:05]} 22. c4 {[%clk 0:01:35]}  Bc6 {[%clk 0:01:04]} 23. Bxc5 {[%clk 0:01:26]}  h5 {[%clk 0:01:04]} 24. Be3 {[%clk 0:01:22]}  h4+ {[%clk 0:00:57]} 25. Kh3 {[%clk 0:01:07]}  g4+ {[%clk 0:00:53]} 26. Kxh4 {[%clk 0:01:02]}  Bxg2 {[%clk 0:00:53]} 27. Kg3 {[%clk 0:01:02]}  Bc6 {[%clk 0:00:28]} 28. Bf4 {[%clk 0:00:56]}  Rh8 {[%clk 0:00:26]} 29. Kf2 {[%clk 0:00:25]}  Raf8 {[%clk 0:00:21]} 30. Ke3 {[%clk 0:00:24]}  a5 {[%clk 0:00:19]} 31. Bg3 {[%clk 0:00:22]}  Rf3+ {[%clk 0:00:18]} 32. Kd4 {[%clk 0:00:22]}  Rb8 {[%clk 0:00:16]} 33. Kc5 {[%clk 0:00:22]}  Be8 {[%clk 0:00:15]} 34. Rd4 {[%clk 0:00:21]}  a4 {[%clk 0:00:13]} 35. b4 {[%clk 0:00:21]}  Rc3 {[%clk 0:00:13]} 36. Rxg4 {[%clk 0:00:18]}  a3 {[%clk 0:00:08]} 37. Rh4 {[%clk 0:00:18]}  Rc2 {[%clk 0:00:05]} 38. Rf1 {[%clk 0:00:17]}  Rb5+ {[%clk 0:00:04]} 39. Kd4 {[%clk 0:00:16]}  Rxb4 {[%clk 0:00:04]} 40. Rh6+ {[%clk 0:00:14]}  Kd7 {[%clk 0:00:04]} 41. e6+ {[%clk 0:00:14]}  Kc6 {[%clk 0:00:04]} 42. Rf4 {[%clk 0:00:10]}  Rcxc4+ {[%clk 0:00:02]} 43. Ke3 {[%clk 0:00:10]}  Rxf4 {[%clk 0:00:01]} 44. Bxf4 {[%clk 0:00:11]}  Rb2 {[%clk 0:00:01]} 45. Rh7 {[%clk 0:00:11]} 1-0


[Site "https://www.chess.com"]

[Event "Titled Tuesday Blitz August 3 2021"]
[White "Jacobson, Aaron"]
[Black "Garv Gaur"]
[WhiteFideId "2089912"]
[BlackFideId "45030839"]
[WhiteElo "2265"]
[BlackElo "1950"]
[Result "1-0"]
[Round "07"]
[TimeControl "180+1"]
[Date "2021.08.03"]
[WhiteClock "0:00:25"]
[BlackClock "0:00:19"]

1. e4 {[%clk 0:02:59]}  c6 {[%clk 0:03:00]} 2. d4 {[%clk 0:02:55]}  d5 {[%clk 0:03:00]} 3. exd5 {[%clk 0:02:56]}  cxd5 {[%clk 0:03:01]} 4. Nf3 {[%clk 0:02:57]}  Nc6 {[%clk 0:03:01]} 5. Ne5 {[%clk 0:02:40]}  Nxe5 {[%clk 0:02:50]} 6. dxe5 {[%clk 0:02:41]}  e6 {[%clk 0:02:51]} 7. Nd2 {[%clk 0:02:39]}  Ne7 {[%clk 0:02:50]} 8. Nf3 {[%clk 0:02:39]}  Nc6 {[%clk 0:02:50]} 9. Bd3 {[%clk 0:02:35]}  Nb4 {[%clk 0:02:45]} 10. Be2 {[%clk 0:02:33]}  Bd7 {[%clk 0:02:41]} 11. c3 {[%clk 0:02:32]}  Nc6 {[%clk 0:02:41]} 12. O-O {[%clk 0:02:32]}  Qc7 {[%clk 0:02:39]} 13. Bf4 {[%clk 0:02:31]}  g6 {[%clk 0:02:40]} 14. Bd3 {[%clk 0:02:30]}  Bg7 {[%clk 0:02:40]} 15. Qe2 {[%clk 0:02:30]}  O-O {[%clk 0:02:40]} 16. h4 {[%clk 0:02:31]}  h5 {[%clk 0:02:39]} 17. Rae1 {[%clk 0:02:23]}  a6 {[%clk 0:02:39]} 18. Qe3 {[%clk 0:02:20]}  b5 {[%clk 0:02:36]} 19. Bh6 {[%clk 0:02:19]}  Na5 {[%clk 0:02:30]} 20. Nh2 {[%clk 0:01:55]}  Nc4 {[%clk 0:02:24]} 21. Qg5 {[%clk 0:01:27]}  Qd8 {[%clk 0:02:03]} 22. Qc1 {[%clk 0:01:23]}  Kh7 {[%clk 0:01:38]} 23. Bxg7 {[%clk 0:01:15]}  Kxg7 {[%clk 0:01:38]} 24. b3 {[%clk 0:01:16]}  Nb6 {[%clk 0:01:35]} 25. Qf4 {[%clk 0:01:17]}  Rc8 {[%clk 0:01:31]} 26. Re3 {[%clk 0:01:14]}  Qe7 {[%clk 0:01:26]} 27. Nf3 {[%clk 0:01:06]}  Rxc3 {[%clk 0:01:14]} 28. Ng5 {[%clk 0:01:02]}  Rfc8 {[%clk 0:00:57]} 29. Rf3 {[%clk 0:00:46]}  Be8 {[%clk 0:00:57]} 30. g4 {[%clk 0:00:46]}  hxg4 {[%clk 0:00:45]} 31. Qxg4 {[%clk 0:00:47]}  Nd7 {[%clk 0:00:46]} 32. Qf4 {[%clk 0:00:40]}  Nc5 {[%clk 0:00:41]} 33. Rd1 {[%clk 0:00:36]}  Nxd3 {[%clk 0:00:39]} 34. Rdxd3 {[%clk 0:00:33]}  Rxd3 {[%clk 0:00:39]} 35. Rxd3 {[%clk 0:00:34]}  a5 {[%clk 0:00:35]} 36. h5 {[%clk 0:00:33]}  Qb4 {[%clk 0:00:32]} 37. Qf6+ {[%clk 0:00:30]}  Kg8 {[%clk 0:00:23]} 38. h6 {[%clk 0:00:27]}  Qf8 {[%clk 0:00:19]} 39. h7# {[%clk 0:00:25]} 1-0


[Site "https://www.chess.com"]

[Event "Titled Tuesday Blitz August 3 2021"]
[White "Kalashian, David"]
[Black "Shkapenko, Pavel"]
[WhiteFideId "13302418"]
[BlackFideId "4151933"]
[WhiteElo "2490"]
[BlackElo "2386"]
[Result "1-0"]
[Round "07"]
[TimeControl "180+1"]
[Date "2021.08.03"]
[WhiteClock "0:00:09"]
[BlackClock "0:00:03"]

1. e4 {[%clk 0:02:26]}  e5 {[%clk 0:02:54]} 2. Nf3 {[%clk 0:02:26]}  Nc6 {[%clk 0:02:54]} 3. d4 {[%clk 0:02:26]}  exd4 {[%clk 0:02:54]} 4. Nxd4 {[%clk 0:02:27]}  Bc5 {[%clk 0:02:54]} 5. Nxc6 {[%clk 0:02:25]}  bxc6 {[%clk 0:02:53]} 6. Nd2 {[%clk 0:02:25]}  Nf6 {[%clk 0:02:29]} 7. Bd3 {[%clk 0:02:23]}  O-O {[%clk 0:02:24]} 8. O-O {[%clk 0:02:22]}  d5 {[%clk 0:02:25]} 9. Nb3 {[%clk 0:02:11]}  Bb6 {[%clk 0:02:18]} 10. exd5 {[%clk 0:02:11]}  cxd5 {[%clk 0:02:18]} 11. Bg5 {[%clk 0:02:12]}  Qd6 {[%clk 0:02:12]} 12. h3 {[%clk 0:01:36]}  Ne4 {[%clk 0:02:06]} 13. Bxe4 {[%clk 0:01:28]}  dxe4 {[%clk 0:02:06]} 14. Qxd6 {[%clk 0:01:29]}  cxd6 {[%clk 0:02:07]} 15. Rad1 {[%clk 0:01:29]}  Ba6 {[%clk 0:01:49]} 16. Rfe1 {[%clk 0:01:28]}  Rac8 {[%clk 0:01:45]} 17. c3 {[%clk 0:01:11]}  Bd3 {[%clk 0:01:28]} 18. Nc1 {[%clk 0:01:11]}  Bc4 {[%clk 0:01:18]} 19. Rxe4 {[%clk 0:01:06]}  d5 {[%clk 0:01:15]} 20. Ree1 {[%clk 0:01:05]}  Rfe8 {[%clk 0:00:55]} 21. Be3 {[%clk 0:01:04]}  Re6 {[%clk 0:00:42]} 22. Bxb6 {[%clk 0:00:59]}  axb6 {[%clk 0:00:38]} 23. Nb3 {[%clk 0:00:42]}  Rce8 {[%clk 0:00:34]} 24. Rxe6 {[%clk 0:00:40]}  fxe6 {[%clk 0:00:35]} 25. f4 {[%clk 0:00:31]}  Kf7 {[%clk 0:00:34]} 26. Nd4 {[%clk 0:00:21]}  Bxa2 {[%clk 0:00:31]} 27. b3 {[%clk 0:00:21]}  Rc8 {[%clk 0:00:24]} 28. Ra1 {[%clk 0:00:21]}  Bxb3 {[%clk 0:00:24]} 29. Nxb3 {[%clk 0:00:20]}  Rxc3 {[%clk 0:00:24]} 30. Nd4 {[%clk 0:00:19]}  Rc4 {[%clk 0:00:25]} 31. Ne2 {[%clk 0:00:18]}  b5 {[%clk 0:00:25]} 32. Ra6 {[%clk 0:00:15]}  b4 {[%clk 0:00:24]} 33. Rb6 {[%clk 0:00:15]}  h6 {[%clk 0:00:20]} 34. Kf2 {[%clk 0:00:15]}  g5 {[%clk 0:00:20]} 35. fxg5 {[%clk 0:00:15]}  hxg5 {[%clk 0:00:20]} 36. Ke3 {[%clk 0:00:16]}  Kf6 {[%clk 0:00:20]} 37. Nd4 {[%clk 0:00:15]}  Rc3+ {[%clk 0:00:21]} 38. Kd2 {[%clk 0:00:07]}  Ke5 {[%clk 0:00:16]} 39. Nxe6 {[%clk 0:00:04]}  Rg3 {[%clk 0:00:15]} 40. Nc5 {[%clk 0:00:04]}  Rxg2+ {[%clk 0:00:15]} 41. Ke3 {[%clk 0:00:05]}  Rg3+ {[%clk 0:00:16]} 42. Kf2 {[%clk 0:00:05]}  Rxh3 {[%clk 0:00:16]} 43. Rxb4 {[%clk 0:00:05]}  d4 {[%clk 0:00:16]} 44. Nd7+ {[%clk 0:00:05]}  Kd5 {[%clk 0:00:15]} 45. Nb6+ {[%clk 0:00:06]}  Kc5 {[%clk 0:00:15]} 46. Rb1 {[%clk 0:00:07]}  Rd3 {[%clk 0:00:13]} 47. Nd7+ {[%clk 0:00:07]}  Kd5 {[%clk 0:00:13]} 48. Nf6+ {[%clk 0:00:08]}  Ke5 {[%clk 0:00:13]} 49. Ng4+ {[%clk 0:00:08]}  Kf4 {[%clk 0:00:13]} 50. Nh2 {[%clk 0:00:09]}  Rd2+ {[%clk 0:00:13]} 51. Kg1 {[%clk 0:00:09]}  g4 {[%clk 0:00:12]} 52. Nf1 {[%clk 0:00:10]}  Rc2 {[%clk 0:00:12]} 53. Rb8 {[%clk 0:00:11]}  d3 {[%clk 0:00:12]} 54. Rd8 {[%clk 0:00:11]}  Ke4 {[%clk 0:00:12]} 55. Re8+ {[%clk 0:00:11]}  Kf3 {[%clk 0:00:11]} 56. Re3+ {[%clk 0:00:11]}  Kf4 {[%clk 0:00:11]} 57. Rxd3 {[%clk 0:00:12]}  Ra2 {[%clk 0:00:11]} 58. Rb3 {[%clk 0:00:12]}  Ke4 {[%clk 0:00:11]} 59. Ng3+ {[%clk 0:00:12]}  Kf4 {[%clk 0:00:11]} 60. Nf1 {[%clk 0:00:13]}  Ke4 {[%clk 0:00:11]} 61. Nh2 {[%clk 0:00:13]}  Kf4 {[%clk 0:00:07]} 62. Rb4+ {[%clk 0:00:13]}  Kg3 {[%clk 0:00:08]} 63. Nf1+ {[%clk 0:00:13]}  Kf3 {[%clk 0:00:07]} 64. Rb3+ {[%clk 0:00:12]}  Kf4 {[%clk 0:00:07]} 65. Ne3 {[%clk 0:00:13]}  g3 {[%clk 0:00:07]} 66. Nf1 {[%clk 0:00:12]}  Ra1 {[%clk 0:00:06]} 67. Kg2 {[%clk 0:00:12]}  Ra2+ {[%clk 0:00:06]} 68. Kg1 {[%clk 0:00:13]}  Ra1 {[%clk 0:00:06]} 69. Rb2 {[%clk 0:00:13]}  Rc1 {[%clk 0:00:06]} 70. Kg2 {[%clk 0:00:13]}  Ra1 {[%clk 0:00:04]} 71. Rb4+ {[%clk 0:00:13]}  Ke5 {[%clk 0:00:04]} 72. Nxg3 {[%clk 0:00:14]}  Ra2+ {[%clk 0:00:04]} 73. Kf3 {[%clk 0:00:14]}  Ra3+ {[%clk 0:00:05]} 74. Kg4 {[%clk 0:00:15]}  Ra2 {[%clk 0:00:04]} 75. Rf4 {[%clk 0:00:15]}  Kd5 {[%clk 0:00:04]} 76. Nf5 {[%clk 0:00:15]}  Ke5 {[%clk 0:00:05]} 77. Ne3 {[%clk 0:00:15]}  Re2 {[%clk 0:00:04]} 78. Nc4+ {[%clk 0:00:15]}  Kd5 {[%clk 0:00:04]} 79. Nb6+ {[%clk 0:00:16]}  Kc6 {[%clk 0:00:04]} 80. Nc4 {[%clk 0:00:16]}  Kd5 {[%clk 0:00:04]} 81. Kf3 {[%clk 0:00:16]}  Re8 {[%clk 0:00:03]} 82. Ne3+ {[%clk 0:00:17]}  Kc5 {[%clk 0:00:03]} 83. Rc4+ {[%clk 0:00:17]}  Kb5 {[%clk 0:00:02]} 84. Rc1 {[%clk 0:00:17]}  Rf8+ {[%clk 0:00:02]} 85. Ke4 {[%clk 0:00:17]}  Re8+ {[%clk 0:00:02]} 86. Kd4 {[%clk 0:00:18]}  Rh8 {[%clk 0:00:03]} 87. Nf5 {[%clk 0:00:16]}  Rg8 {[%clk 0:00:02]} 88. Nd6+ {[%clk 0:00:16]}  Kb6 {[%clk 0:00:01]} 89. Rc2 {[%clk 0:00:14]}  Rg4+ {[%clk 0:00:02]} 90. Kd5 {[%clk 0:00:14]}  Rg5+ {[%clk 0:00:02]} 91. Kd4 {[%clk 0:00:12]}  Rg4+ {[%clk 0:00:03]} 92. Ne4 {[%clk 0:00:13]}  Rg6 {[%clk 0:00:03]} 93. Kd5 {[%clk 0:00:13]}  Kb7 {[%clk 0:00:03]} 94. Nd6+ {[%clk 0:00:13]}  Kb6 {[%clk 0:00:03]} 95. Rb2+ {[%clk 0:00:12]}  Ka5 {[%clk 0:00:03]} 96. Ne4 {[%clk 0:00:11]}  Ka6 {[%clk 0:00:03]} 97. Kc5 {[%clk 0:00:10]}  Ka7 {[%clk 0:00:03]} 98. Nd6 {[%clk 0:00:10]}  Rg5+ {[%clk 0:00:03]} 99. Kc6 {[%clk 0:00:10]}  Ra5 {[%clk 0:00:04]} 100. Nb5+ {[%clk 0:00:09]}  Ka8 {[%clk 0:00:03]} 101. Nc7+ {[%clk 0:00:09]}  Ka7 {[%clk 0:00:03]} 102. Rb7# {[%clk 0:00:09]} 1-0


[Site "https://www.chess.com"]